[Event "EYCC Open U20 2021"]
[Site "Tornelo"]
[Date "2021.10.15"]
[Round "4.10"]
[White "Bruaset, Eivind"]
[Black "Nordquelle, Daniel"]
[Result "1-0"]
[ECO "A31"]
[WhiteElo "2200"]
[BlackElo "2143"]
[Annotator "ChessBase"]
[PlyCount "109"]
[EventDate "2021.10.15"]
[EventType "swiss"]
[EventCountry "NET"]
[SourceTitle "playchess.com"]
[Source "ChessBase"]
[SourceQuality "1"]
[TimeControl "5400+30"]

1. e4 {[%emt 0:00:30]} c5 {[%emt 0:00:50]} 2. Nf3 {[%emt 0:00:15]} a6 {[%emt 0:00:11]} 3. c4 {[%emt 0:00:26]} d6 {[%emt 0:02:23]} 4. d4 {[%emt 0:01:48]} cxd4 {[%emt 0:00:04]} 5. Nxd4 {[%emt 0:00:14]} Nf6 {[%emt 0:00:39]} 6. Nc3 {[%emt 0:00:31]} e6 {[%emt 0:00:10]} 7. Be2 {[%emt 0:04:45]} Be7 {[%emt 0:01:16]} 8. O-O {[%emt 0:01:07]} b6 {[%emt 0:01:41]} 9. Be3 {[%emt 0:02:33]} O-O {[%emt 0:00:56]} 10. f3 {[%emt 0:10:00]} Bb7 {[%emt 0:00:22]} 11. Qd2 {[%emt 0:00:24]} Nbd7 {[%emt 0:00:58]} 12. Rac1 {[%emt 0:01:33]} Rc8 {[%emt 0:08:57]} 13. Rfd1 {[%emt 0:02:33]} Kh8 {[%emt 0:05:58]} 14. Bf1 {[%emt 0:01:26]} Qc7 {[%emt 0:02:12]} 15. Qf2 {[%emt 0:02:33]} Rg8 {[%emt 0:01:21]} 16. b4 {[%emt 0:09:54]} g5 {[%emt 0:02:11]} 17. h3 {[%emt 0:00:40]} Rg6 {[%emt 0:05:53]} 18. Na4 {[%emt 0:07:27]} h5 {[%emt 0:04:53]} 19. Bd3 {[%emt 0:25:22]} Ne5 {[%emt 0:12:25]} 20. Ne2 {[%emt 0:02:43]} g4 {[%emt 0:09:06]} 21. Nf4 {[%emt 0:00:47]} Rg7 {[%emt 0:01:20]} 22. hxg4 {[%emt 0:00:22]} hxg4 {[%emt 0:04:07]} 23. Kf1 {[%emt 0:00:20]} gxf3 {[%emt 0:05:21]} 24. gxf3 {[%emt 0:00:30]} Nxd3 {[%emt 0:09:56]} 25. Nxd3 {[%emt 0:02:28]} Rcg8 {[%emt 0:05:03]} 26. Ke2 {[%emt 0:00:26]} b5 {[%emt 0:01:45]} 27. cxb5 {[%emt 0:03:12]} Qd7 {[%emt 0:00:05]} 28. Rh1+ {[%emt 0:00:37]} Nh7 {[%emt 0:00:14]} 29. Rh5 {[%emt 0:00:46]} f5 {[%emt 0:03:21]} 30. exf5 {[%emt 0:02:12]} Bf6 {[%emt 0:01:51]} 31. Nb6 {[%emt 0:03:17]} Qf7 {[%emt 0:01:15]} 32. Nf4 {[%emt 0:00:42]} exf5 {[%emt 0:00:46]} 33. Nc4 {[%emt 0:06:24]} Rc8 {[%emt 0:04:41]} 34. Nxd6 {[%emt 0:03:30]} Qxa2+ {[%emt 0:00:05]} 35. Kf1 {[%emt 0:00:05]} Rxc1+ {[%emt 0:00:39]} 36. Bxc1 {[%emt 0:00:03]} Qb3 {[%emt 0:02:37]} 37. Qe2 {[%emt 0:01:31]} Bxf3 {[%emt 0:02:20]} 38. Qe8+ {[%emt 0:00:28]} Qg8 {[%emt 0:00:11]} 39. Nf7+ {[%emt 0:02:09]} Rxf7 {[%emt 0:00:09]} 40. Ng6+ {[%emt 0:00:03]} Kg7 {[%emt 0:00:04]} 41. Bh6+ {[%emt 0:00:04]} Kxg6 {[%emt 0:00:12]} 42. Qxg8+ {[%emt 0:00:04]} Kxh5 {[%emt 0:02:06]} 43. Qxf7+ {[%emt 0:00:13]} Kxh6 {[%emt 0:00:01]} 44. bxa6 {[%emt 0:00:18]} Be4 {[%emt 0:01:21]} 45. a7 {[%emt 0:00:53]} Bd4 {[%emt 0:00:25]} 46. Qe6+ {[%emt 0:00:12]} Nf6 {[%emt 0:00:19]} 47. Qxe4 {[%emt 0:00:09]} fxe4 {[%emt 0:00:31]} 48. a8=Q {[%emt 0:00:15]} Kg5 {[%emt 0:00:03]} 49. b5 {[%emt 0:00:27]} Kf4 {[%emt 0:00:17]} 50. b6 {[%emt 0:00:09]} e3 {[%emt 0:01:11]} 51. Ke2 {[%emt 0:00:47]} Ne4 {[%emt 0:00:19]} 52. b7 {[%emt 0:00:27]} Ng3+ {[%emt 0:00:40]} 53. Kd3 {[%emt 0:00:08]} e2 {[%emt 0:00:30]} 54. b8=Q+ {[%emt 0:00:09]} Be5 {[%emt 0:00:03]} 55. Qxe5+ {[%emt 0:00:08]} 1-0

[Event "EYCC Open U20 2021"]
[Site "Tornelo"]
[Date "2021.10.15"]
[Round "4.11"]
[White "Crevatin, Leo"]
[Black "Levin, Guy"]
[Result "0-1"]
[ECO "D10"]
[WhiteElo "2275"]
[BlackElo "2359"]
[Annotator "ChessBase"]
[PlyCount "94"]
[EventDate "2021.10.15"]
[EventType "swiss"]
[EventCountry "NET"]
[SourceTitle "playchess.com"]
[Source "ChessBase"]
[SourceQuality "1"]
[TimeControl "5400+30"]

1. d4 {[%emt 0:00:30]} d5 {[%emt 0:00:34]} 2. c4 {[%emt 0:00:24]} dxc4 {[%emt 0:00:04]} 3. e4 {[%emt 0:02:49]} b5 {[%emt 0:00:05]} 4. a4 {[%emt 0:02:02]} c6 {[%emt 0:00:06]} 5. Nc3 {[%emt 0:01:50]} b4 {[%emt 0:00:26]} 6. Nce2 {[%emt 0:03:47]} Ba6 {[%emt 0:00:43]} 7. Nf3 {[%emt 0:02:10]} e6 {[%emt 0:02:03]} 8. Ng3 {[%emt 0:10:00]} Nf6 {[%emt 0:12:40]} 9. Be2 {[%emt 0:07:14]} c5 {[%emt 0:03:27]} 10. e5 {[%emt 0:05:33]} Nd5 {[%emt 0:07:20]} 11. Ne4 {[%emt 0:11:46]} cxd4 {[%emt 0:05:26]} 12. Nxd4 {[%emt 0:07:44]} Qc7 {[%emt 0:06:31]} 13. O-O {[%emt 0:06:39]} Be7 {[%emt 0:11:33]} 14. Re1 {[%emt 0:12:55]} O-O {[%emt 0:02:43]} 15. Bg4 {[%emt 0:04:59]} Qd7 {[%emt 0:06:54]} 16. Bg5 {[%emt 0:03:15]} Nc6 {[%emt 0:03:29]} 17. Nf3 {[%emt 0:04:54]} h6 {[%emt 0:07:06]} 18. Bxe7 {[%emt 0:01:11]} Qxe7 {[%emt 0:02:10]} 19. Nd6 {[%emt 0:02:11]} Rad8 {[%emt 0:06:26]} 20. Qc2 {[%emt 0:03:23]} Nxe5 {[%emt 0:01:05]} 21. Nxe5 {[%emt 0:00:54]} Rxd6 {[%emt 0:00:31]} 22. Nxc4 {[%emt 0:00:43]} Rc6 {[%emt 0:00:08]} 23. b3 {[%emt 0:01:07]} Qc7 {[%emt 0:00:16]} 24. Rac1 {[%emt 0:02:32]} Bxc4 {[%emt 0:00:39]} 25. bxc4 {[%emt 0:00:23]} Nc3 {[%emt 0:00:21]} 26. Be2 {[%emt 0:00:51]} Rc8 {[%emt 0:00:59]} 27. Bf1 {[%emt 0:00:17]} Rc5 {[%emt 0:00:28]} 28. Re3 {[%emt 0:00:33]} Qc6 {[%emt 0:00:32]} 29. Rg3 {[%emt 0:00:54]} a5 {[%emt 0:00:11]} 30. Ra1 {[%emt 0:01:15]} Rd8 {[%emt 0:00:53]} 31. Qc1 {[%emt 0:00:32]} e5 {[%emt 0:00:14]} 32. Qe3 {[%emt 0:00:29]} Rd4 {[%emt 0:00:47]} 33. Bd3 {[%emt 0:00:36]} Qd6 {[%emt 0:00:05]} 34. Re1 {[%emt 0:00:27]} e4 {[%emt 0:01:04]} 35. Bc2 {[%emt 0:00:33]} f5 {[%emt 0:00:05]} 36. Rg6 {[%emt 0:00:30]} Qxg6 {[%emt 0:01:59]} 37. Qxd4 {[%emt 0:00:07]} Qc6 {[%emt 0:00:03]} 38. f3 {[%emt 0:00:42]} Kh7 {[%emt 0:00:35]} 39. fxe4 {[%emt 0:00:44]} Rxc4 {[%emt 0:00:12]} 40. Qe5 {[%emt 0:00:28]} fxe4 {[%emt 0:00:35]} 41. Qf5+ {[%emt 0:00:25]} Qg6 {[%emt 0:00:07]} 42. Qxa5 {[%emt 0:00:22]} Rd4 {[%emt 0:00:09]} 43. Qc7 {[%emt 0:00:44]} Rd2 {[%emt 0:00:20]} 44. Bxe4 {[%emt 0:00:33]} Nxe4 {[%emt 0:00:08]} 45. g3 {[%emt 0:00:15]} Ng5 {[%emt 0:00:49]} 46. Rf1 {[%emt 0:00:48]} Nh3+ {[%emt 0:00:07]} 47. Kh1 {[%emt 0:00:14]} Qe4+ {[%emt 0:00:03]} 0-1

[Event "EYCC Open U20 2021"]
[Site "Tornelo"]
[Date "2021.10.15"]
[Round "7.9"]
[White "Crevatin, Leo"]
[Black "Tryggestad, Andreas Garberg"]
[Result "0-1"]
[ECO "E60"]
[WhiteElo "2275"]
[BlackElo "2268"]
[Annotator "RC"]
[PlyCount "64"]
[EventDate "2021.10.15"]
[EventType "swiss"]
[EventCountry "NET"]
[SourceTitle "playchess.com"]
[Source "ChessBase"]
[SourceQuality "1"]
[TimeControl "5400+30"]

1. d4 {[%emt 0:00:30]} Nf6 {[%emt 0:00:35]} 2. c4 {[%emt 0:00:18]} g6 {[%emt 0:00:07]} 3. f3 {[%emt 0:00:26]} c5 {[%emt 0:00:06]} 4. d5 {[%emt 0:00:26]} Bg7 {[%emt 0:00:04]} 5. e4 {[%emt 0:00:36]} d6 {[%emt 0:00:05]} 6. Ne2 {[%emt 0:00:59]} e6 {[%emt 0:00:28]} 7. Nec3 {[%emt 0:01:53]} a6 {[%emt 0:00:18]} 8. a4 {[%emt 0:00:26]} Nh5 {[%emt 0:00:39]} 9. Be3 {[%emt 0:03:58]} f5 {[%emt 0:00:40]} 10. Nd2 {[%emt 0:12:59]} O-O {[%emt 0:02:56]} 11. Bd3 {[%emt 0:04:13]} Qh4+ {[%emt 0:25:08]} 12. g3 {[%emt 0:12:03]} Nxg3 {[%emt 0:16:50]} 13. Bf2 {[%emt 0:00:45]} f4 {[%emt 0:00:06]} 14. Ne2 {[%emt 0:09:16]} Be5 {[%emt 0:06:00]} 15. Nf1 {[%emt 0:10:28]} Qh6 {[%emt 0:10:12]} 16. Nfxg3 {[%emt 0:14:47]} fxg3 {[%emt 0:00:06]} 17. Nxg3 {[%emt 0:01:04]} exd5 {[%emt 0:07:18]} 18. cxd5 {[%emt 0:03:08]} Bxb2 {[%emt 0:01:01]} 19. O-O {[%emt 0:03:53]} Bh3 {[%emt 0:00:47]} 20. Rb1 {[%emt 0:02:07]} Bxf1 {[%emt 0:01:23]} 21. Bxf1 {[%emt 0:00:58]} Qg7 {[%emt 0:03:21]} 22. Qb3 {[%emt 0:01:20]} Be5 {[%emt 0:03:45]} 23. Qxb7 {[%emt 0:02:18]} Nd7 {[%emt 0:02:22]} 24. Rd1 {[%emt 0:02:21]} Rab8 {[%emt 0:04:10]} 25. Qxa6 {[%emt 0:03:33]} Rxf3 {[%emt 0:00:05]} 26. Qe2 {[%emt 0:00:40]} Rbf8 {[%emt 0:02:31]} 27. Be3 {[%emt 0:02:14]} Bxg3 {[%emt 0:07:43]} 28. hxg3 {[%emt 0:00:20]} Rxg3+ {[%emt 0:00:02]} 29. Bg2 {[%emt 0:00:13]} Ne5 {[%emt 0:00:02]} 30. Bf2 {[%emt 0:02:45]} Ra3 {[%emt 0:02:22]} 31. Qb5 {[%emt 0:01:37]} Nf3+ {[%emt 0:01:30]} 32. Kf1 {[%emt 0:00:17]} Ra2 {[%emt 0:01:12]} 0-1

[Event "EYCC Open U20 2021"]
[Site "Tornelo"]
[Date "2021.10.15"]
[Round "9.1"]
[White "Pantzar, Milton"]
[Black "Garayev, Kanan"]
[Result "1/2-1/2"]
[ECO "D31"]
[WhiteElo "2413"]
[BlackElo "2339"]
[Annotator "ChessBase"]
[PlyCount "104"]
[EventDate "2021.10.15"]
[EventType "swiss"]
[EventCountry "NET"]
[SourceTitle "playchess.com"]
[Source "ChessBase"]
[SourceQuality "1"]
[TimeControl "5400+30"]

1. d4 {[%emt 0:00:30]} d5 {[%emt 0:00:34]} 2. Nf3 {[%emt 0:00:21]} e6 {[%emt 0:00:03]} 3. c4 {[%emt 0:00:36]} a6 {[%emt 0:00:04]} 4. cxd5 {[%emt 0:03:39]} exd5 {[%emt 0:00:03]} 5. Nc3 {[%emt 0:00:13]} c6 {[%emt 0:00:03]} 6. Qc2 {[%emt 0:03:15]} Bd6 {[%emt 0:00:39]} 7. Bg5 {[%emt 0:00:41]} Ne7 {[%emt 0:03:21]} 8. e3 {[%emt 0:01:54]} f6 {[%emt 0:06:19]} 9. Bh4 {[%emt 0:01:20]} Bf5 {[%emt 0:00:07]} 10. Bd3 {[%emt 0:01:02]} Bxd3 {[%emt 0:04:08]} 11. Qxd3 {[%emt 0:00:07]} O-O {[%emt 0:04:46]} 12. O-O {[%emt 0:05:36]} Ng6 {[%emt 0:07:41]} 13. e4 {[%emt 0:07:03]} Nf4 {[%emt 0:09:06]} 14. Qc2 {[%emt 0:01:43]} dxe4 {[%emt 0:19:30]} 15. Nxe4 {[%emt 0:01:08]} Nd5 {[%emt 0:04:18]} 16. Qb3 {[%emt 0:05:55]} Rf7 {[%emt 0:02:06]} 17. Rad1 {[%emt 0:12:21]} a5 {[%emt 0:01:31]} 18. a3 {[%emt 0:07:14]} Na6 {[%emt 0:02:47]} 19. Rfe1 {[%emt 0:01:21]} Bf8 {[%emt 0:01:24]} 20. Ne5 {[%emt 0:06:49]} Rc7 {[%emt 0:03:13]} 21. Rd3 {[%emt 0:10:31]} a4 {[%emt 0:04:35]} 22. Qd1 {[%emt 0:02:25]} Be7 {[%emt 0:03:10]} 23. Nf3 {[%emt 0:02:25]} Rd7 {[%emt 0:02:42]} 24. Bg3 {[%emt 0:00:38]} f5 {[%emt 0:01:55]} 25. Nc3 {[%emt 0:00:41]} Nxc3 {[%emt 0:01:35]} 26. bxc3 {[%emt 0:02:00]} Nc5 {[%emt 0:01:18]} 27. Rxe7 {[%emt 0:01:25]} Qxe7 {[%emt 0:00:42]} 28. dxc5 {[%emt 0:00:14]} Rxd3 {[%emt 0:00:01]} 29. Qxd3 {[%emt 0:00:11]} Qxc5 {[%emt 0:00:16]} 30. Ne5 {[%emt 0:11:27]} h6 {[%emt 0:04:20]} 31. c4 {[%emt 0:04:09]} Re8 {[%emt 0:01:05]} 32. Qxf5 {[%emt 0:00:28]} Qxc4 {[%emt 0:00:25]} 33. h3 {[%emt 0:01:24]} Qd5 {[%emt 0:01:58]} 34. Qf4 {[%emt 0:00:30]} b5 {[%emt 0:00:34]} 35. Ng4 {[%emt 0:02:38]} c5 {[%emt 0:00:02]} 36. Qc7 {[%emt 0:01:08]} b4 {[%emt 0:05:28]} 37. Be5 {[%emt 0:00:36]} Qf7 {[%emt 0:00:23]} 38. Qxc5 {[%emt 0:00:22]} bxa3 {[%emt 0:00:14]} 39. Bc3 {[%emt 0:01:37]} h5 {[%emt 0:01:51]} 40. Ne5 {[%emt 0:00:43]} Qb3 {[%emt 0:00:33]} 41. Qd4 {[%emt 0:01:32]} a2 {[%emt 0:01:27]} 42. Nf3 {[%emt 0:00:45]} Qb1+ {[%emt 0:02:00]} 43. Kh2 {[%emt 0:00:08]} Qg6 {[%emt 0:00:02]} 44. Qxa4 {[%emt 0:00:36]} Qe6 {[%emt 0:01:22]} 45. Qd4 {[%emt 0:00:19]} Qf6 {[%emt 0:00:08]} 46. Ne5 {[%emt 0:00:48]} Kh8 {[%emt 0:00:59]} 47. g3 {[%emt 0:00:49]} Rxe5 {[%emt 0:01:14]} 48. Qxe5 {[%emt 0:00:26]} Qxf2+ {[%emt 0:00:02]} 49. Kh1 {[%emt 0:00:13]} Qf1+ {[%emt 0:00:02]} 50. Kh2 {[%emt 0:00:08]} Qf2+ {[%emt 0:00:01]} 51. Kh1 {[%emt 0:00:08]} Qf1+ {[%emt 0:00:01]} 52. Kh2 {[%emt 0:00:05]} Qf2+ {[%emt 0:00:02]} 1/2-1/2

[Event "EYCC Open U20 2021"]
[Site "Tornelo"]
[Date "2021.10.15"]
[Round "9.2"]
[White "Bruaset, Eivind"]
[Black "Salemgareev, Tagir"]
[Result "0-1"]
[ECO "B32"]
[WhiteElo "2200"]
[BlackElo "2489"]
[Annotator "ChessBase"]
[PlyCount "90"]
[EventDate "2021.10.15"]
[EventType "swiss"]
[EventCountry "NET"]
[SourceTitle "playchess.com"]
[Source "ChessBase"]
[SourceQuality "1"]
[TimeControl "5400+30"]

1. e4 {[%emt 0:00:30]} c5 {[%emt 0:00:36]} 2. Nf3 {[%emt 0:00:08]} Nc6 {[%emt 0:00:04]} 3. d4 {[%emt 0:00:10]} cxd4 {[%emt 0:00:04]} 4. Nxd4 {[%emt 0:00:04]} e5 {[%emt 0:00:03]} 5. Nb5 {[%emt 0:00:12]} d6 {[%emt 0:00:03]} 6. N1c3 {[%emt 0:00:15]} a6 {[%emt 0:00:04]} 7. Na3 {[%emt 0:00:06]} b5 {[%emt 0:00:04]} 8. Nd5 {[%emt 0:00:08]} Nge7 {[%emt 0:00:03]} 9. Bd3 {[%emt 0:00:07]} Nxd5 {[%emt 0:01:59]} 10. exd5 {[%emt 0:00:08]} Ne7 {[%emt 0:00:38]} 11. c4 {[%emt 0:00:11]} Ng6 {[%emt 0:00:45]} 12. cxb5 {[%emt 0:04:58]} Be7 {[%emt 0:00:04]} 13. O-O {[%emt 0:01:03]} O-O {[%emt 0:00:03]} 14. Re1 {[%emt 0:05:19]} f5 {[%emt 0:02:33]} 15. bxa6 {[%emt 0:00:51]} f4 {[%emt 0:37:29]} 16. f3 {[%emt 0:08:08]} Bh4 {[%emt 0:00:45]} 17. Re4 {[%emt 0:02:30]} Rf5 {[%emt 0:02:56]} 18. Rb4 {[%emt 0:19:07]} Rh5 {[%emt 0:02:05]} 19. Bd2 {[%emt 0:01:37]} Qc7 {[%emt 0:01:58]} 20. Nb5 {[%emt 0:12:26]} Qc5+ {[%emt 0:00:18]} 21. Nd4 {[%emt 0:00:06]} exd4 {[%emt 0:00:40]} 22. Rc1 {[%emt 0:00:20]} Qa7 {[%emt 0:00:07]} 23. Rbc4 {[%emt 0:02:09]} Bxa6 {[%emt 0:03:10]} 24. Rc7 {[%emt 0:08:29]} Bb7 {[%emt 0:00:04]} 25. Qb3 {[%emt 0:00:20]} Rb8 {[%emt 0:00:04]} 26. R1c4 {[%emt 0:01:11]} Bd8 {[%emt 0:02:08]} 27. Ra4 {[%emt 0:04:16]} Qxa4 {[%emt 0:00:13]} 28. Qxa4 {[%emt 0:00:19]} Bxc7 {[%emt 0:00:02]} 29. Qd7 {[%emt 0:01:40]} Rc8 {[%emt 0:00:47]} 30. Bf5 {[%emt 0:06:24]} Rxf5 {[%emt 0:09:05]} 31. Qxf5 {[%emt 0:00:07]} Nf8 {[%emt 0:00:04]} 32. b4 {[%emt 0:03:46]} Ra8 {[%emt 0:10:51]} 33. Qc2 {[%emt 0:00:29]} Bb6 {[%emt 0:00:04]} 34. Qb3 {[%emt 0:00:24]} d3+ {[%emt 0:01:21]} 35. Kh1 {[%emt 0:00:36]} Be3 {[%emt 0:00:14]} 36. Bc3 {[%emt 0:02:44]} d2 {[%emt 0:01:13]} 37. a4 {[%emt 0:00:05]} Rc8 {[%emt 0:00:09]} 38. Bxd2 {[%emt 0:00:13]} Bxd2 {[%emt 0:00:03]} 39. g3 {[%emt 0:00:06]} Be3 {[%emt 0:01:39]} 40. Kg2 {[%emt 0:00:45]} Rc1 {[%emt 0:00:10]} 41. Kh3 {[%emt 0:01:53]} Bc8+ {[%emt 0:00:07]} 42. Kh4 {[%emt 0:00:14]} Rh1 {[%emt 0:01:40]} 43. Qc2 {[%emt 0:00:13]} Bf5 {[%emt 0:00:13]} 44. Qg2 {[%emt 0:04:10]} Rg1 {[%emt 0:00:10]} 45. Qe2 {[%emt 0:00:03]} fxg3 {[%emt 0:00:08]} 0-1

[Event "EYCC Open U20 2021"]
[Site "Tornelo"]
[Date "2021.10.15"]
[Round "9.3"]
[White "Kirilmaz, Emre"]
[Black "Murzin, Volodar"]
[Result "0-1"]
[ECO "A48"]
[WhiteElo "2147"]
[BlackElo "2513"]
[Annotator "ChessBase"]
[PlyCount "66"]
[EventDate "2021.10.15"]
[EventType "swiss"]
[EventCountry "NET"]
[SourceTitle "playchess.com"]
[Source "ChessBase"]
[SourceQuality "1"]
[TimeControl "5400+30"]

1. d4 {[%emt 0:00:30]} Nf6 {[%emt 0:00:34]} 2. c3 {[%emt 0:00:06]} g6 {[%emt 0:00:05]} 3. Bg5 {[%emt 0:00:07]} Bg7 {[%emt 0:00:03]} 4. Nd2 {[%emt 0:00:06]} O-O {[%emt 0:00:04]} 5. Ngf3 {[%emt 0:00:09]} d6 {[%emt 0:00:14]} 6. e4 {[%emt 0:00:10]} h6 {[%emt 0:00:28]} 7. Bh4 {[%emt 0:00:40]} c5 {[%emt 0:00:52]} 8. dxc5 {[%emt 0:03:53]} dxc5 {[%emt 0:00:18]} 9. Bc4 {[%emt 0:00:11]} Nc6 {[%emt 0:00:09]} 10. O-O {[%emt 0:00:36]} Nh5 {[%emt 0:00:22]} 11. Re1 {[%emt 0:01:11]} Qc7 {[%emt 0:01:08]} 12. Qe2 {[%emt 0:04:54]} e6 {[%emt 0:09:09]} 13. e5 {[%emt 0:08:22]} g5 {[%emt 0:06:18]} 14. Nxg5 {[%emt 0:01:09]} hxg5 {[%emt 0:16:36]} 15. Bxg5 {[%emt 0:09:00]} f6 {[%emt 0:00:27]} 16. Qxh5 {[%emt 0:30:58]} fxg5 {[%emt 0:00:10]} 17. Bd3 {[%emt 0:01:28]} Bxe5 {[%emt 0:08:57]} 18. Nf3 {[%emt 0:06:10]} Rxf3 {[%emt 0:02:38]} 19. gxf3 {[%emt 0:03:15]} Bf4 {[%emt 0:18:24]} 20. Rad1 {[%emt 0:06:16]} Qe7 {[%emt 0:11:41]} 21. Qg6+ {[%emt 0:07:05]} Kf8 {[%emt 0:00:31]} 22. Be4 {[%emt 0:08:13]} Qg7 {[%emt 0:05:05]} 23. Qh5 {[%emt 0:03:12]} Ke7 {[%emt 0:01:22]} 24. Bf5 {[%emt 0:02:42]} Ne5 {[%emt 0:01:17]} 25. Bg4 {[%emt 0:01:07]} Bd7 {[%emt 0:00:58]} 26. Qh3 {[%emt 0:00:49]} Rh8 {[%emt 0:03:43]} 27. Qf1 {[%emt 0:00:13]} Bxh2+ {[%emt 0:03:49]} 28. Kg2 {[%emt 0:00:08]} Bc6 {[%emt 0:01:01]} 29. Rxe5 {[%emt 0:00:17]} Bxe5 {[%emt 0:00:12]} 30. Qc4 {[%emt 0:00:09]} Qf6 {[%emt 0:02:08]} 31. Qxc5+ {[%emt 0:00:09]} Kf7 {[%emt 0:00:08]} 32. Re1 {[%emt 0:00:31]} Bxf3+ {[%emt 0:00:39]} 33. Bxf3 {[%emt 0:00:14]} Rh2+ {[%emt 0:00:04]} 0-1

[Event "EYCC Open U20 2021"]
[Site "Tornelo"]
[Date "2021.10.15"]
[Round "9.4"]
[White "Sokolovsky, Yahli"]
[Black "Dudin, Gleb"]
[Result "0-1"]
[ECO "B90"]
[WhiteElo "2422"]
[BlackElo "2438"]
[Annotator "ChessBase"]
[PlyCount "104"]
[EventDate "2021.10.15"]
[EventType "swiss"]
[EventCountry "NET"]
[SourceTitle "playchess.com"]
[Source "ChessBase"]
[SourceQuality "1"]
[TimeControl "5400+30"]

1. e4 {[%emt 0:00:40]} c5 {[%emt 0:05:07]} 2. Nf3 {[%emt 0:00:08]} d6 {[%emt 0:00:27]} 3. d4 {[%emt 0:00:12]} cxd4 {[%emt 0:00:10]} 4. Nxd4 {[%emt 0:00:03]} Nf6 {[%emt 0:00:03]} 5. Nc3 {[%emt 0:00:03]} a6 {[%emt 0:00:02]} 6. h3 {[%emt 0:00:02]} e5 {[%emt 0:00:05]} 7. Nb3 {[%emt 0:00:03]} Be7 {[%emt 0:00:11]} 8. g4 {[%emt 0:00:11]} h6 {[%emt 0:00:09]} 9. Be3 {[%emt 0:00:35]} Nbd7 {[%emt 0:00:17]} 10. a4 {[%emt 0:00:04]} Nf8 {[%emt 0:00:26]} 11. Qd2 {[%emt 0:00:43]} Ng6 {[%emt 0:02:31]} 12. O-O-O {[%emt 0:01:48]} Be6 {[%emt 0:00:19]} 13. Nd5 {[%emt 0:02:44]} Nxd5 {[%emt 0:07:49]} 14. exd5 {[%emt 0:00:04]} Bd7 {[%emt 0:00:04]} 15. a5 {[%emt 0:05:33]} Bg5 {[%emt 0:01:38]} 16. Qb4 {[%emt 0:15:55]} Qc7 {[%emt 0:03:07]} 17. Nd2 {[%emt 0:05:17]} Rc8 {[%emt 0:20:57]} 18. Nc4 {[%emt 0:00:28]} Ke7 {[%emt 0:00:38]} 19. Kb1 {[%emt 0:02:39]} Bxe3 {[%emt 0:01:18]} 20. fxe3 {[%emt 0:05:39]} Bb5 {[%emt 0:00:18]} 21. Na3 {[%emt 0:02:35]} Bxf1 {[%emt 0:07:07]} 22. Rhxf1 {[%emt 0:00:04]} Nf8 {[%emt 0:00:06]} 23. Qe4 {[%emt 0:22:47]} Nd7 {[%emt 0:02:46]} 24. Qf5 {[%emt 0:06:48]} Rhf8 {[%emt 0:04:17]} 25. Qh7 {[%emt 0:13:18]} Rg8 {[%emt 0:00:53]} 26. h4 {[%emt 0:04:11]} Nf6 {[%emt 0:01:15]} 27. Qf5 {[%emt 0:01:04]} Qd7 {[%emt 0:00:07]} 28. Qxd7+ {[%emt 0:04:23]} Nxd7 {[%emt 0:00:05]} 29. c4 {[%emt 0:02:01]} Nf6 {[%emt 0:05:34]} 30. Rg1 {[%emt 0:00:03]} h5 {[%emt 0:01:18]} 31. g5 {[%emt 0:01:34]} Ng4 {[%emt 0:01:10]} 32. Rg3 {[%emt 0:00:22]} f6 {[%emt 0:00:48]} 33. gxf6+ {[%emt 0:00:43]} gxf6 {[%emt 0:00:05]} 34. Rdg1 {[%emt 0:01:09]} Kf7 {[%emt 0:07:26]} 35. Rf1 {[%emt 0:01:03]} Nh2 {[%emt 0:00:51]} 36. Rxg8 {[%emt 0:00:09]} Rxg8 {[%emt 0:00:06]} 37. Rc1 {[%emt 0:01:20]} Nf3 {[%emt 0:11:06]} 38. c5 {[%emt 0:00:28]} dxc5 {[%emt 0:00:06]} 39. Rxc5 {[%emt 0:00:13]} Nxh4 {[%emt 0:00:22]} 40. Rc7+ {[%emt 0:00:27]} Kg6 {[%emt 0:00:04]} 41. d6 {[%emt 0:01:32]} Rd8 {[%emt 0:05:09]} 42. Nc4 {[%emt 0:00:10]} Nf3 {[%emt 0:01:45]} 43. d7 {[%emt 0:00:51]} h4 {[%emt 0:00:37]} 44. Nb6 {[%emt 0:00:50]} Kf7 {[%emt 0:00:17]} 45. Rc1 {[%emt 0:01:25]} h3 {[%emt 0:00:08]} 46. Rh1 {[%emt 0:00:10]} h2 {[%emt 0:00:08]} 47. Kc2 {[%emt 0:00:32]} e4 {[%emt 0:00:52]} 48. Kd1 {[%emt 0:00:16]} Ke7 {[%emt 0:00:30]} 49. Ke2 {[%emt 0:00:06]} Rg8 {[%emt 0:01:09]} 50. Nd5+ {[%emt 0:00:55]} Ke6 {[%emt 0:00:13]} 51. d8=Q {[%emt 0:01:05]} Rxd8 {[%emt 0:00:07]} 52. Nf4+ {[%emt 0:00:22]} Kf5 {[%emt 0:00:05]} 0-1